bitfinex/quotes_SOLUSD_20240717
["timestamp","ask_amount","ask_price","bid_price","bid_amount"]
[1721243039840,6.371,156.96,156.93,15.56]
[1721243040032,6.371,156.96,156.94,46.27415578]
[1721243040240,15.1042,156.99,156.94,46.27415578]
[1721243040468,6.3707,156.97,156.94,46.27415578]
[1721243040768,6.371,156.96,156.94,45.0]
[1721243041245,6.371,156.96,156.93,46.27412269]
[1721243042165,6.371,156.96,156.93,45.0]
[1721243042841,6.371,156.96,156.94,1.27411791]
[1721243044979,6.3714,156.95,156.93,60.56]
[1721243045345,6.3714,156.95,156.94,1.27411786]
[1721243045677,6.3711,156.96,156.94,16.83411786]
[1721243045863,6.3711,156.96,156.95,45.0]
[1721243047152,6.3711,156.96,156.95,46.27407826]
[1721243047774,6.3703,156.98,156.95,61.83399906]
[1721243047947,6.3703,156.98,156.96,16.83396245]
[1721243048154,6.3703,156.98,156.97,45.0]
[1721243051291,6.3709,156.97,156.94,22.0458]
[1721243051577,6.371,156.96,156.94,6.4858]
[1721243051763,6.371,156.96,156.93,15.56]
[1721243052694,15.56,156.98,156.93,15.56]
[1721243052695,6.3715,156.95,156.93,15.56]
[1721243052862,6.3715,156.95,156.91,15.56]
[1721243053375,6.3715,156.95,156.9,12.6848]
[1721243053376,6.3715,156.95,156.92,15.56]
[1721243054590,6.3715,156.95,156.93,45.0]
[1721243054767,6.3715,156.95,156.92,45.0]
[1721243055175,6.371,156.96,156.92,51.3726]
[1721243055493,6.3707,156.97,156.93,1.27425825]
[1721243055663,6.3707,156.97,156.93,16.83425825]
[1721243055865,6.3707,156.97,156.94,45.0]
[1721243056180,6.3701,156.99,156.95,16.83420717]
[1721243056387,6.3701,156.99,156.96,46.27403669]
[1721243057295,6.3702,156.98,156.96,46.27403669]
[1721243058269,6.3702,156.98,156.96,45.0]
[1721243058469,6.3702,156.98,156.95,45.0]
[1721243058663,6.3699,156.99,156.96,1.27408011]
[1721243058870,6.3699,156.99,156.96,16.83408011]
[1721243059086,6.3699,156.99,156.97,45.0]
[1721243059285,21.9295,157.0,156.96,1.27408011]
[1721243059489,20.0,156.99,156.96,1.27408011]
[1721243059689,20.0,156.99,156.96,16.83408011]
[1721243059889,26.3699,156.99,156.97,45.0]
[1721243062293,26.3699,156.99,156.96,45.0]
[1721243065696,26.3699,156.99,156.96,60.56]
[1721243068496,26.3699,156.99,156.96,45.0]
[1721243069497,6.3702,156.98,156.96,45.0]
[1721243070793,6.3715,156.95,156.92,15.56]
[1721243070985,6.3718,156.94,156.9,122.2443]
[1721243071184,6.3718,156.94,156.91,15.56]
[1721243071402,6.3716,156.95,156.91,15.56]
[1721243072289,6.3716,156.95,156.91,21.933]
[1721243072796,6.3716,156.95,156.91,23.20734588]
[1721243073001,6.3716,156.95,156.92,45.0]
[1721243074205,6.3715,156.95,156.92,45.0]
[1721243074377,6.3707,156.97,156.92,6.3726]
[1721243074586,6.3707,156.97,156.93,45.0]
[1721243074883,6.3711,156.96,156.93,45.0]
[1721243075099,6.3711,156.96,156.92,45.0]
[1721243077917,6.3711,156.96,156.92,51.3726]
[1721243078120,6.3707,156.97,156.92,51.3726]
[1721243078292,6.371,156.96,156.92,51.3726]
[1721243078625,6.371,156.96,156.92,45.0]
[1721243081699,6.371,156.96,156.92,51.3726]
[1721243083793,6.371,156.96,156.92,45.0]
[1721243084402,6.371,156.96,156.92,51.3725]
[1721243084996,6.3707,156.97,156.92,51.3725]
[1721243085520,6.371,156.96,156.92,45.0]
[1721243086609,6.3715,156.95,156.92,45.0]
[1721243086993,6.3715,156.95,156.91,45.0]
[1721243087194,6.3715,156.95,156.91,51.373]
[1721243087403,6.3711,156.96,156.91,51.373]
[1721243088519,6.3711,156.96,156.92,6.3725]
[1721243088692,16.4979,156.98,156.93,52.64657333]
[1721243088890,20.0,156.97,156.93,52.64657333]
[1721243089201,26.3707,156.97,156.93,52.64657333]
[1721243090022,26.3707,156.97,156.93,51.3722]
[1721243090621,26.3707,156.97,156.94,1.27421932]
[1721243092726,26.3707,156.97,156.93,45.0]
[1721243093399,6.3711,156.96,156.93,45.0]
[1721243094696,6.3715,156.95,156.93,45.0]
[1721243095414,6.3715,156.95,156.92,45.0]
[1721243098205,21.9311,156.96,156.92,45.0]
[1721243098410,6.3714,156.95,156.92,45.0]
[1721243099410,6.3722,156.93,156.9,100.0]
[1721243099726,6.3719,156.94,156.9,100.0]
[1721243100707,6.3719,156.94,156.91,45.0]
[1721243106525,6.3715,156.95,156.91,45.0]
[1721243107139,15.56,156.94,156.91,45.0]
[1721243108839,21.9318,156.94,156.91,45.0]
[1721243112039,15.56,156.94,156.91,45.0]
[1721243115343,21.9319,156.94,156.91,45.0]
[1721243115545,21.9322,156.93,156.9,100.0]
[1721243115724,32.424,156.98,156.9,100.0]
[1721243115725,21.933,156.91,156.9,100.0]
[1721243116195,15.56,156.91,156.9,100.0]
[1721243117111,21.933,156.91,156.9,100.0]
[1721243119039,15.56,156.91,156.9,100.0]
[1721243121645,21.9328,156.92,156.9,100.0]
[1721243122337,6.373,156.91,156.9,100.0]
[1721243122640,21.933,156.91,156.9,100.0]
[1721243126959,15.56,156.91,156.9,100.0]
[1721243127134,21.9328,156.92,156.9,100.0]
[1721243127582,6.373,156.91,156.9,100.0]
[1721243127866,21.933,156.91,156.9,100.0]
[1721243133463,41.933,156.91,156.9,100.0]
[1721243136250,26.373,156.91,156.9,100.0]
[1721243145568,41.933,156.91,156.9,100.0]
[1721243158612,26.373,156.91,156.9,100.0]
[1721243162286,41.933,156.91,156.9,100.0]
[1721243162997,26.373,156.91,156.9,100.0]
[1721243163388,6.3727,156.92,156.9,100.0]
[1721243163593,21.9327,156.92,156.9,100.0]
[1721243163926,6.373,156.91,156.9,100.0]
[1721243164907,47.0264,156.97,156.9,145.0]
[1721243164908,15.1728,156.97,156.9,145.0]
[1721243165112,21.9315,156.95,156.91,46.27440774]
[1721243165413,6.3718,156.94,156.91,46.27440774]
[1721243165603,21.9318,156.94,156.91,45.0]
[1721243165796,15.56,156.94,156.91,45.0]
[1721243165993,15.9271,156.97,156.91,45.0]
[1721243166392,6.3722,156.93,156.91,45.0]
[1721243169714,6.3719,156.94,156.91,45.0]
[1721243171616,6.3715,156.95,156.91,45.0]
[1721243171794,6.3719,156.94,156.91,45.0]
[1721243171989,6.3715,156.95,156.91,45.0]
[1721243172191,6.3715,156.95,156.91,46.27447104]
[1721243172389,6.3715,156.95,156.91,45.0]
[1721243174295,6.3715,156.95,156.91,51.373]
[1721243174602,6.3715,156.95,156.91,45.0]
[1721243174820,6.3718,156.94,156.91,45.0]
[1721243175389,6.3718,156.94,156.9,116.3247]
[1721243175613,6.3723,156.93,156.9,100.0]
[1721243177712,6.372,156.94,156.9,100.0]
[1721243177907,6.372,156.94,156.9,106.3734]
[1721243178615,6.372,156.94,156.9,100.0]
[1721243178832,6.372,156.94,156.9,101.27455861]
[1721243179120,6.372,156.94,156.9,100.0]
[1721243180502,6.372,156.94,156.9,101.27451906]
[1721243181017,15.9259,156.98,156.9,107.64771906]
[1721243181230,20.0,156.97,156.91,45.0]
[1721243181420,20.0,156.97,156.91,46.27442689]
[1721243181727,6.3716,156.95,156.91,46.27442689]
[1721243182020,20.0,156.94,156.91,46.27442689]
[1721243182313,20.0,156.97,156.91,46.27442689]
[1721243182314,6.3709,156.97,156.91,46.27442689]
[1721243182527,62.9427,157.01,156.92,6.3692]
[1721243182689,0.17,157.0,156.93,46.2742883]
[1721243182890,6.3713,156.96,156.93,46.2742883]
[1721243183516,6.3714,156.95,156.93,46.2742883]
[1721243186394,15.9269,156.97,156.92,6.3692]
[1721243187523,6.3722,156.93,156.92,6.3692]
[1721243187724,6.3727,156.92,156.9,100.0]
[1721243187923,6.3722,156.94,156.9,100.0]
[1721243188106,6.3722,156.94,156.9,107.6477982]
[1721243188625,6.3722,156.94,156.9,101.2744982]
[1721243188920,6.3722,156.94,156.9,100.0]
[1721243189134,6.3722,156.94,156.91,45.0]
[1721243194410,6.3723,156.93,156.9,100.0]
[1721243195121,6.3727,156.92,156.9,100.0]
[1721243195324,6.3723,156.93,156.9,100.0]
[1721243196407,6.3726,156.92,156.9,100.0]
[1721243196623,6.3724,156.93,156.9,100.0]
[1721243197243,15.7239,156.96,156.9,100.0]
[1721243197406,26.3717,156.95,156.91,51.373]
[1721243198231,26.3717,156.95,156.91,45.0]
[1721243198623,6.3719,156.94,156.91,45.0]
[1721243199918,6.3719,156.94,156.9,122.3068]
[1721243199921,20.0,156.95,156.9,122.3068]
[1721243199922,6.3723,156.93,156.9,100.0]
[1721243200855,6.372,156.94,156.9,106.3734]
[1721243201032,6.372,156.94,156.9,107.6478919]
[1721243201712,26.3715,156.95,156.9,107.6478919]
[1721243201913,26.3715,156.95,156.91,45.0]
[1721243202115,6.3719,156.94,156.91,46.27447869]
[1721243203821,6.3719,156.94,156.91,45.0]
[1721243205840,6.3723,156.93,156.91,45.0]
[1721243207232,20.0,156.95,156.91,45.0]
[1721243207442,6.3726,156.92,156.91,45.0]
[1721243207751,6.3726,156.92,156.9,100.0]
[1721243209118,6.373,156.91,156.9,100.0]
[1721243210534,42.103,156.91,156.9,100.0]
[1721243210742,57.1235,156.91,156.9,100.0]
[1721243211262,72.6835,156.91,156.9,51.7534]
[1721243211417,124.1589,156.91,156.9,35.9634]
[1721243212959,93.0389,156.91,156.9,20.1734]
[1721243213541,41.3935,156.91,156.9,20.1734]
[1721243213938,26.373,156.91,156.9,20.1734]
[1721243215134,26.543,156.91,156.9,20.1734]
[1721243222760,6.373,156.91,156.9,20.1734]
[1721243224130,26.373,156.91,156.9,20.1734]
[1721243227046,6.373,156.91,156.9,20.1734]
[1721243228345,26.373,156.91,156.9,20.1734]
[1721243228749,6.373,156.91,156.9,20.1734]
[1721243229350,15.56,156.94,156.9,20.1734]
[1721243229563,15.56,156.94,156.9,21.44793869]
[1721243230036,15.9274,156.97,156.9,37.00793869]
[1721243230364,6.3729,156.92,156.9,37.00793869]
[1721243231165,6.373,156.91,156.9,20.1734]
[1721243241469,26.373,156.91,156.9,20.1734]
[1721243241766,26.543,156.91,156.9,20.1734]
[1721243243171,42.103,156.91,156.9,20.1734]
[1721243244051,26.543,156.91,156.9,20.1734]
[1721243244564,42.103,156.91,156.9,20.1734]
[1721243244769,87.103,156.91,156.9,20.1734]
[1721243246357,6.3768,156.82,156.8,6.5658]
[1721243246560,6.3767,156.82,156.8,6.5658]
[1721243247880,15.9378,156.86,156.8,6.5658]
[1721243247881,6.3764,156.83,156.8,6.5658]
[1721243249461,6.3768,156.82,156.8,6.5658]
[1721243250371,6.3762,156.84,156.8,6.5658]
[1721243250972,6.3763,156.83,156.8,6.5658]
[1721243251672,6.3759,156.84,156.8,6.5658]
[1721243251880,6.3759,156.84,156.8,7.84116265]
[1721243253177,6.3763,156.83,156.8,7.84116265]
[1721243253376,6.3759,156.84,156.8,23.40116265]
[1721243254173,6.3764,156.83,156.8,22.1258]
[1721243254356,6.3764,156.83,156.8,6.5658]
[1721243255354,21.936,156.84,156.8,6.5658]
[1721243255580,21.936,156.84,156.81,1.27529656]
[1721243255778,6.3764,156.83,156.8,6.5658]
[1721243256459,6.3764,156.83,156.8,7.84109706]
[1721243256981,6.3767,156.82,156.8,6.5658]
[1721243257160,6.3771,156.81,156.8,6.5658]
[1721243258281,6.3767,156.82,156.8,6.5658]
[1721243260284,6.3771,156.81,156.8,6.5658]
[1721243261294,6.3768,156.82,156.8,6.5658]
[1721243264771,21.9364,156.83,156.8,7.84117548]
[1721243264975,6.3764,156.83,156.8,7.84117548]
[1721243265159,6.3767,156.82,156.8,6.5658]
[1721243266400,6.3772,156.81,156.79,1.4052326]
[1721243270487,6.3767,156.82,156.79,1.4052326]
[1721243272097,6.3772,156.81,156.79,1.4052326]
[1721243273176,15.9391,156.85,156.79,1.4052326]
[1721243273177,6.3768,156.82,156.79,1.4052326]
[1721243275003,15.9364,156.88,156.81,6.3771]
[1721243275178,6.3758,156.85,156.8,23.21295858]
[1721243275379,20.0,156.84,156.8,23.21295858]
[1721243275575,26.376,156.84,156.8,23.21295858]
[1721243276304,26.376,156.84,156.8,16.83545858]
[1721243276798,6.3763,156.83,156.8,16.83545858]
[1721243279007,6.3768,156.82,156.8,16.83545858]
[1721243279706,6.3768,156.82,156.8,1.27545858]
[1721243279879,6.3771,156.81,156.8,45.0]
[1721243280083,6.3771,156.81,156.79,1.4052326]
[1721243280284,6.3775,156.8,156.79,1.4052326]
[1721243280787,20.0,156.84,156.79,1.4052326]
[1721243280788,6.3772,156.81,156.79,1.4052326]
[1721243281517,6.3775,156.8,156.79,1.4052326]
[1721243282001,6.3772,156.81,156.79,1.4052326]
[1721243282584,6.3766,156.83,156.79,1.4052326]
[1721243282789,6.3767,156.82,156.79,1.4052326]
[1721243283583,6.3772,156.81,156.79,1.4052326]
[1721243284111,6.3768,156.82,156.79,1.4052326]
[1721243284311,6.3768,156.82,156.78,60.56]
[1721243285223,6.3773,156.81,156.77,32.2097]
[1721243285514,6.3773,156.81,156.78,45.0]
[1721243286904,6.3773,156.81,156.77,16.6497]
[1721243286905,6.3775,156.8,156.77,16.6497]
[1721243287815,6.378,156.79,156.77,16.6497]
[1721243290795,6.3776,156.8,156.77,16.6497]
[1721243291496,16.6611,156.82,156.7,31.1056]
[1721243291697,15.56,156.74,156.7,31.1056]
[1721243292013,0.17,156.79,156.7,46.6656]
[1721243292401,6.3799,156.75,156.7,53.0469]
[1721243292724,6.3799,156.75,156.71,15.56]
[1721243293227,6.3792,156.76,156.71,21.9412]
[1721243293402,20.0,156.81,156.73,6.3803]
[1721243293607,6.3784,156.78,156.74,1.27579622]
[1721243294603,6.3788,156.77,156.74,1.27579622]
[1721243295224,6.3788,156.77,156.72,82.8922]
[1721243295603,6.3788,156.77,156.73,1.27579623]
[1721243296528,6.3792,156.76,156.73,1.27579623]
[1721243296711,6.3792,156.76,156.72,76.5115]
[1721243299118,4.9739674,156.76,156.72,76.5115]
[1721243300420,20.0,156.79,156.69,6.1613]
[1721243300421,51.8905,156.79,156.69,6.1613]
[1721243300604,0.17,156.78,156.69,6.1613]
[1721243300801,6.3808,156.72,156.69,6.1613]
[1721243301020,0.17,156.78,156.7,15.56]
[1721243301225,6.3802,156.74,156.71,1.27602645]
[1721243301613,67.8361,156.79,156.72,15.56]
[1721243301614,35.9456,156.79,156.72,15.56]
[1721243301808,6.3799,156.75,156.72,15.56]
[1721243302840,6.3792,156.76,156.73,45.0]
[1721243303007,6.3792,156.76,156.73,76.6711]
[1721243306035,6.3796,156.75,156.73,76.6711]
[1721243306422,6.3796,156.75,156.73,61.1111]
[1721243306743,6.3796,156.75,156.73,76.6711]
[1721243310535,35.9456,156.79,156.73,76.6711]
[1721243310737,6.3791,156.77,156.75,15.56]
[1721243312530,6.3791,156.77,156.76,15.56]
[1721243313517,6.3791,156.77,156.74,7.41430819]
[1721243313742,6.3791,156.77,156.75,60.56]
[1721243313946,6.3791,156.77,156.76,1.27571022]
[1721243314820,6.3791,156.77,156.76,16.83571022]
[1721243315020,6.3791,156.77,156.76,60.56]
[1721243317421,6.3791,156.77,156.76,45.0]
[1721243317720,6.3791,156.77,156.75,60.56]
[1721243318523,6.3791,156.76,156.75,45.0]
[1721243319731,6.3791,156.76,156.74,6.1386]
[1721243319925,6.3791,156.76,156.73,31.6711]
[1721243320139,6.3791,156.76,156.74,45.0]
[1721243321845,15.9442,156.8,156.74,60.56]
[1721243321846,6.3788,156.77,156.74,60.56]
[1721243322146,31.8825,156.83,156.74,60.56]
[1721243322147,6.3784,156.78,156.74,60.56]
[1721243322448,15.9414,156.83,156.74,66.9397]
[1721243322744,20.0,156.82,156.75,15.56]
[1721243323330,6.3783,156.78,156.75,15.56]
[1721243323849,6.3783,156.78,156.74,45.0]
[1721243324148,6.3783,156.78,156.74,60.56]
[1721243324648,6.3783,156.78,156.74,61.83568013]
[1721243324940,6.3783,156.78,156.74,60.56]
[1721243326838,6.3787,156.77,156.74,60.56]
[1721243330227,6.3784,156.78,156.74,60.56]
[1721243330751,6.3788,156.77,156.74,60.56]
[1721243331438,6.3796,156.75,156.72,15.56]
[1721243331747,6.3796,156.75,156.73,45.0]
[1721243332342,15.9457,156.79,156.72,15.56]
[1721243332544,15.9457,156.79,156.7,15.56]
[1721243332545,20.17,156.78,156.7,15.56]
[1721243332731,35.9192,156.78,156.7,15.56]
[1721243333345,15.9474,156.77,156.69,15.56]
[1721243333532,20.17,156.76,156.68,22.22113982]
[1721243334456,6.382,156.69,156.65,0.8036482]
[1721243334636,6.382,156.69,156.65,16.3636482]
[1721243334843,6.382,156.69,156.65,0.3036482]
[1721243335136,15.56,156.7,156.65,0.3036482]
[1721243335339,6.3825,156.68,156.65,0.3036482]
[1721243335654,6.3828,156.67,156.65,0.3036482]
[1721243335846,26.3832,156.66,156.65,0.3036482]
[1721243336954,26.5532,156.66,156.65,0.3036482]
[1721243337347,42.4535,156.66,156.65,0.3036482]
[1721243341551,42.4535,156.66,156.65,4.82e-05]
[1721243342576,87.4535,156.66,156.65,4.82e-05]
[1721243343338,42.4535,156.66,156.65,4.82e-05]
[1721243344738,87.4535,156.66,156.65,4.82e-05]
[1721243345466,87.4535,156.66,156.52,6.3658]
[1721243345467,6.3873,156.56,156.52,6.3658]
[1721243345647,6.3873,156.56,156.52,12.7546]
[1721243346471,20.0,156.55,156.52,6.3658]
[1721243346652,20.0,156.55,156.53,45.0]
[1721243346854,6.387,156.57,156.53,45.0]
[1721243347046,20.0,156.56,156.53,60.56]
[1721243347252,20.0,156.56,156.53,45.0]
[1721243347564,26.3875,156.56,156.53,45.0]
[1721243348339,20.0,156.56,156.53,45.0]
[1721243348551,20.0,156.57,156.53,45.0]
[1721243348832,6.3886,156.53,156.49,16.3636241]
[1721243349041,6.3886,156.53,156.49,22.7536241]
[1721243349246,6.3882,156.54,156.5,15.56]
[1721243349569,20.0,156.53,156.49,22.7536241]
[1721243349864,20.0,156.57,156.49,22.7536241]
[1721243350443,6.3886,156.53,156.5,15.56]
[1721243350762,6.3886,156.53,156.51,45.0]
[1721243352550,6.6013,156.62,156.52,1.27760895]
[1721243352551,15.9637,156.61,156.52,1.27760895]
[1721243352755,15.9637,156.61,156.54,15.56]
[1721243352954,15.9637,156.61,156.55,45.0]
[1721243353451,6.3874,156.56,156.53,15.56]
[1721243353664,15.9637,156.61,156.54,45.0]
[1721243353842,6.3869,156.57,156.54,75.7848]
[1721243355045,6.3869,156.57,156.55,1.27732416]
[1721243356285,6.3877,156.55,156.54,60.2248]
[1721243356449,6.3877,156.55,156.54,15.2248]
[1721243356965,6.3877,156.55,156.5,21.4723]
[1721243357286,6.3877,156.55,156.51,60.56]
[1721243357773,6.387,156.57,156.52,21.9489]
[1721243357969,6.3874,156.56,156.53,45.0]
[1721243358167,15.9629,156.62,156.53,45.0]
[1721243358168,6.3869,156.57,156.53,45.0]
[1721243358383,6.3873,156.56,156.53,45.0]
[1721243360451,6.3879,156.55,156.53,45.0]
[1721243360650,6.3879,156.55,156.52,45.0]
[1721243361581,6.3879,156.55,156.49,2.41e-05]
[1721243361582,6.3897,156.5,156.49,2.41e-05]
[1721243361985,26.3897,156.5,156.49,2.41e-05]
[1721243363050,26.5597,156.5,156.49,2.41e-05]
[1721243363378,26.3897,156.5,156.49,2.41e-05]
[1721243363582,26.5597,156.5,156.49,2.41e-05]
[1721243363901,71.5597,156.5,156.49,2.41e-05]
[1721243364062,26.5597,156.5,156.49,2.41e-05]
[1721243365850,39.17,156.5,156.34,0.8036241]
[1721243366051,6.3932,156.42,156.36,6.3953]
[1721243366272,6.3946,156.39,156.34,16.7943241]
[1721243366470,6.3946,156.39,156.34,23.1906241]
[1721243366666,6.3947,156.38,156.34,0.8036241]
[1721243366988,84.34,156.49,156.35,17.26760699]
[1721243366989,6.3929,156.43,156.35,17.26760699]
[1721243367161,26.393,156.42,156.35,15.9887]
[1721243367354,26.3931,156.42,156.35,15.9887]
[1721243367758,20.0,156.42,156.38,6.3945]
[1721243368091,20.0,156.43,156.36,6.3951]
[1721243368394,6.3933,156.42,156.37,6.395]
[1721243368568,6.3934,156.41,156.36,6.3954]
[1721243368886,6.3939,156.4,156.35,22.3846]
[1721243369188,15.9812,156.44,156.35,15.9887]
[1721243369358,20.0,156.43,156.35,15.9887]
[1721243370087,6.3937,156.41,156.36,6.3953]
[1721243370383,6.3939,156.4,156.35,22.3845]
[1721243371868,6.3935,156.41,156.36,6.3953]
[1721243372552,6.393,156.42,156.35,15.9887]
[1721243372986,6.393,156.42,156.37,6.395]
[1721243373162,20.0,156.43,156.36,6.3954]
[1721243373366,20.0,156.44,156.35,15.9887]
[1721243374089,6.3937,156.41,156.36,6.3951]
[1721243374290,6.3938,156.4,156.36,6.3951]
[1721243374593,6.3935,156.41,156.36,6.3951]
[1721243375085,6.3931,156.42,156.38,6.3946]
[1721243375383,26.3925,156.44,156.39,7.67251343]
[1721243375679,6.3913,156.47,156.4,21.9602]
[1721243375863,31.9479,156.51,156.4,21.9602]
[1721243376061,6.3927,156.43,156.4,21.9602]
[1721243376459,6.3922,156.44,156.4,21.9602]
[1721243377980,6.3928,156.43,156.4,21.9602]
[1721243378496,6.3927,156.43,156.4,23.23863858]
[1721243378668,6.3922,156.44,156.4,23.23863858]
[1721243379091,6.3927,156.43,156.4,21.9602]
[1721243379478,6.3927,156.43,156.41,1.2784384]
[1721243381482,6.3927,156.43,156.4,21.9602]
[1721243382296,6.393,156.42,156.4,21.9602]
[1721243382500,6.3927,156.43,156.4,21.9602]
[1721243384491,6.3922,156.44,156.4,21.9602]
[1721243384877,6.3922,156.44,156.4,28.3539]
[1721243386188,6.3922,156.44,156.4,21.9602]
[1721243386573,6.3927,156.43,156.4,21.9602]
[1721243388890,6.3931,156.42,156.4,21.9602]
[1721243389703,6.3927,156.43,156.4,21.9602]
[1721243390880,6.393,156.42,156.4,21.9602]
[1721243392512,6.3927,156.43,156.4,21.9602]
[1721243394083,6.3931,156.42,156.4,21.9602]
[1721243396423,20.0,156.41,156.37,15.0419]
[1721243397108,15.9797,156.45,156.37,15.0419]
[1721243397109,20.0,156.44,156.37,15.0419]
[1721243397308,6.3942,156.4,156.37,15.0419]
[1721243398313,6.3943,156.39,156.37,15.0419]
[1721243398518,15.9817,156.43,156.37,15.0419]
[1721243398683,6.3946,156.38,156.37,15.0419]
[1721243399397,6.395,156.37,156.36,6.1292]
[1721243399609,6.3959,156.35,156.34,0.8036241]
[1721243400412,6.3956,156.36,156.34,0.8036241]
[1721243401319,26.3959,156.35,156.34,0.8036241]
[1721243401616,6.3954,156.37,156.34,0.8036241]
[1721243401797,36.327,156.47,156.35,7.88998455]
[1721243401994,15.9798,156.45,156.36,1.27855976]
[1721243402318,15.0161,156.49,156.39,15.9847]
[1721243402506,6.3924,156.44,156.41,6.2811]
[1721243402685,15.9758,156.49,156.42,1.27825057]
[1721243402886,15.9758,156.49,156.43,1.27821572]
[1721243403207,6.3919,156.45,156.43,1.27821572]
[1721243403416,6.3922,156.44,156.43,1.27821572]
[1721243403784,6.3926,156.43,156.41,6.2811]
[1721243403989,6.3923,156.44,156.42,1.27833091]
[1721243404190,6.3923,156.44,156.43,1.27827593]
[1721243404517,20.0,156.44,156.41,6.2811]
[1721243404816,20.0,156.46,156.41,6.2811]
[1721243405307,20.0,156.46,156.37,15.7098]
[1721243405308,15.9804,156.45,156.37,15.7098]
[1721243405606,6.3943,156.39,156.38,1.27864891]
[1721243405808,6.3935,156.41,156.38,1.27864891]
[1721243406105,6.3931,156.42,156.37,22.1046]
[1721243406436,26.3934,156.41,156.37,15.7098]
[1721243406711,20.0,156.41,156.37,22.1048]
[1721243407083,6.393,156.42,156.37,22.1048]
[1721243407289,6.3934,156.41,156.37,15.7098]
[1721243407490,6.3934,156.41,156.38,1.27846576]
[1721243407884,6.3959,156.35,156.34,0.8036241]
[1721243408087,20.0,156.4,156.34,0.8036241]
[1721243408317,6.3953,156.37,156.34,0.8036241]
[1721243408520,20.0,156.4,156.34,0.8036241]
[1721243408723,6.3949,156.38,156.34,0.8036241]
[1721243408912,20.0,156.37,156.34,0.8036241]
[1721243409288,26.3951,156.37,156.34,0.8036241]
[1721243409482,6.3955,156.36,156.34,0.8036241]
[1721243409802,6.3943,156.39,156.36,6.1559]
[1721243409991,6.3943,156.39,156.37,1.27872067]
[1721243410716,6.3943,156.39,156.36,6.1559]
[1721243411583,6.3939,156.4,156.36,6.1559]
[1721243411809,6.3939,156.4,156.36,7.43451215]
[1721243412204,6.3933,156.42,156.36,7.43451215]
[1721243412510,6.3927,156.43,156.37,16.157]
[1721243412723,6.3923,156.44,156.39,6.3942]
[1721243413996,6.3906,156.48,156.43,6.3926]
[1721243414198,6.3901,156.5,156.45,6.5758]
[1721243414416,6.3901,156.5,156.46,1.27789857]
[1721243415015,6.3903,156.49,156.45,6.5758]
[1721243415835,6.3898,156.5,156.46,1.27789855]
[1721243416006,15.9687,156.56,156.46,7.66909855]
[1721243416921,6.3897,156.51,156.46,7.66909855]
[1721243417102,6.3897,156.51,156.47,6.3909]
[1721243417298,6.3897,156.51,156.48,1.27768153]
[1721243417505,6.3897,156.51,156.49,1.27769321]
[1721243418500,6.3897,156.51,156.46,6.5612]
[1721243418706,6.3897,156.51,156.47,1.44770177]
[1721243419121,6.3897,156.51,156.47,0.17]
[1721243419407,6.3897,156.51,156.47,1.44772573]
[1721243419607,6.3897,156.51,156.47,6.5609]
[1721243420048,6.3897,156.51,156.47,0.17]
[1721243420325,6.3897,156.51,156.47,0.34]
[1721243420530,6.3897,156.51,156.47,6.7309]